fUST/lending_fUST_20260111
["ID","MTS","AMOUNT","RATE_DAILY","PERIOD"]
[401295460,1768115452378,-728.0,0.00036103,11]
[401295461,1768115452388,-728.0,0.0003614,11]
[401295462,1768115452399,-728.0,0.00036142,11]
[401295463,1768115452409,-1000.0,0.00036164,120]
[401295464,1768115452418,-999.0,0.00036164,120]
[401295465,1768115452427,-532.55,0.00036164,30]
[401295466,1768115452437,-2100.0,0.00036164,5]
[401295467,1768115452448,-190.69567849,0.00036164,5]
[401295468,1768115452458,-269.53,0.000364,5]
[401295469,1768115452468,-744.0,0.00036425,11]
[401295470,1768115452477,-728.0,0.00036425,11]
[401295471,1768115452486,-728.0,0.00036426,11]
[401295472,1768115452495,-160.0,0.0003643,11]
[401295473,1768115452504,-1000.0,0.00036438,120]
[401295474,1768115452514,-24887.7717,0.0003644,30]
[401295475,1768115452523,-250.21928027,0.00036444,5]
[401295476,1768115452532,-728.0,0.00036445,11]
[401295477,1768115452541,-728.0,0.00036448,11]
[401295478,1768115452551,-728.0,0.00036448,11]
[401295479,1768115452561,-728.0,0.00036452,11]
[401295480,1768115452570,-728.0,0.00036454,11]
[401295481,1768115452579,-728.0,0.00036458,11]
[401295482,1768115452591,-163.0,0.000365,120]
[401295483,1768115452601,-99230.5536432,0.000365,2]
[401295484,1768115452611,-170.0,0.00036521,89]
[401295485,1768115452620,-880.99,0.000367,120]
[401295486,1768115452629,-3000.0,0.000367,120]
[401295487,1768115452724,-970.26397223,0.00036707,2]
[401295488,1768115452734,-180.93086222,0.00036709,120]
[401295489,1768115452744,-1000.0,0.00036712,120]
[401295490,1768115452753,-500.0,0.00036712,2]
[401295491,1768115452763,-500.0,0.00036712,2]
[401295492,1768115452772,-525.79336527,0.00036712,30]
[401295493,1768115452782,-601.14032287,0.00036712,2]
[401295494,1768115452791,-500.0,0.00036712,30]
[401295495,1768115452801,-500.0,0.00036712,30]
[401295496,1768115452810,-500.0,0.00036712,30]
[401295497,1768115452819,-500.0,0.00036712,30]
[401295498,1768115452828,-500.0,0.00036712,30]
[401295499,1768115452837,-500.0,0.00036712,30]
[401295500,1768115452847,-500.0,0.00036712,30]
[401295501,1768115452856,-453.95776,0.00036712,30]
[401295502,1768115452866,-500.0,0.00036712,30]
[401295503,1768115452875,-507.5672722,0.00036712,30]
[401295504,1768115452884,-500.0,0.00036712,2]
[401295505,1768115452894,-500.0,0.00036712,2]
[401295506,1768115452903,-500.0,0.00036712,2]
[401295507,1768115452913,-500.0,0.00036712,2]
[401295508,1768115452924,-500.0,0.00036712,2]
[401295509,1768115452934,-500.0,0.00036712,2]
[401295510,1768115452943,-500.0,0.00036712,2]
[401295511,1768115452955,-311.25399765,0.00036712,2]
[401295512,1768115452965,-517.41385528,0.00036712,30]
[401295513,1768115452974,-515.77118193,0.00036712,30]
[401295514,1768115452983,-505.08376008,0.00036712,30]
[401295515,1768115452992,-500.0,0.00036712,30]
[401295516,1768115453001,-500.0,0.00036712,30]
[401295517,1768115453010,-500.0,0.00036712,30]
[401295518,1768115453020,-500.0,0.00036712,30]
[401295519,1768115453029,-500.0,0.00036712,30]
[401295520,1768115453038,-500.0,0.00036712,30]
[401295521,1768115453048,-500.0,0.00036712,30]
[401295522,1768115453057,-500.0,0.00036712,30]
[401295523,1768115453067,-500.0,0.00036712,30]
[401295524,1768115453077,-500.0,0.00036712,30]
[401295525,1768115453087,-435.79809887,0.00036712,30]
[401295526,1768115453097,-496.30087179,0.00036712,30]
[401295527,1768115453106,-523.47204712,0.00036712,30]
[401295528,1768115453115,-509.55608441,0.00036712,30]
[401295529,1768115453125,-337.63663526,0.00036712,30]
[401295530,1768115453135,-516.17782652,0.00036712,30]
[401295531,1768115453145,-277.33327289,0.00036712,30]
[401295532,1768115453156,-154.49913443,0.00036712,30]
[401295533,1768115453166,-261.89333374,0.00036712,30]
[401295534,1768115453176,-573.48613407,0.00036712,30]
[401295535,1768115453185,-559.46886412,0.00036712,30]
[401295536,1768115453195,-555.12064961,0.00036712,30]
[401295537,1768115453205,-536.96257138,0.00036712,30]
[401295538,1768115453214,-510.47228054,0.00036712,30]
[401295539,1768115453223,-502.99137935,0.00036712,30]
[401295540,1768115453242,-500.0,0.00036712,30]
[401295541,1768115453255,-500.0,0.00036712,30]
[401295542,1768115453266,-500.0,0.00036712,30]
[401295543,1768115453277,-500.0,0.00036712,30]
[401295544,1768115453287,-500.0,0.00036712,30]
[401295545,1768115453297,-500.0,0.00036712,30]
[401295546,1768115453306,-500.0,0.00036712,30]
[401295547,1768115453316,-500.0,0.00036712,30]
[401295548,1768115453326,-298.53130147,0.00036712,30]
[401295549,1768115453335,-532.68814088,0.00036712,30]
[401295550,1768115453345,-599.43015721,0.00036712,30]
[401295551,1768115453355,-607.3523042,0.00036712,30]
[401295552,1768115453365,-504.0948618,0.00036712,30]
[401295553,1768115453375,-546.35140966,0.00036712,30]
[401295554,1768115453385,-556.78391806,0.00036712,30]
[401295555,1768115453394,-500.0,0.00036712,30]
[401295556,1768115453406,-503.86064142,0.00036712,30]
[401295557,1768115453415,-500.0,0.00036712,30]
[401295558,1768115453425,-152.99622449,0.00036712,30]
[401295559,1768115453435,-571.20178268,0.00036712,30]
[401295560,1768115453445,-513.4448394,0.00036712,30]
[401295561,1768115453455,-500.0,0.00036712,30]
[401295562,1768115453464,-500.0,0.00036712,30]
[401295563,1768115453475,-500.0,0.00036712,30]
[401295564,1768115453484,-500.0,0.00036712,30]
[401295565,1768115453493,-500.0,0.00036712,30]
[401295566,1768115453503,-500.0,0.00036712,30]
[401295567,1768115453512,-190.0354984,0.00036712,30]
[401295568,1768115453522,-344.667262,0.00036712,30]
[401295569,1768115453531,-504.61600788,0.00036712,30]
[401295570,1768115453540,-559.00678652,0.00036712,30]
[401295571,1768115453549,-511.68339076,0.00036712,30]
[401295572,1768115453560,-755.83,0.00036712,30]
[401295573,1768115453570,-755.83,0.00036712,30]
[401295574,1768115453580,-755.83,0.00036712,30]
[401295575,1768115453590,-755.83,0.00036712,30]
[401295576,1768115453599,-755.83,0.00036712,30]
[401295577,1768115453608,-755.83,0.00036712,30]
[401295578,1768115453618,-755.83,0.00036712,30]
[401295579,1768115453628,-755.83,0.00036712,30]
[401295580,1768115453638,-755.83,0.00036712,30]
[401295581,1768115453648,-755.83,0.00036712,30]
[401295582,1768115453659,-755.83,0.00036712,30]
[401295583,1768115453667,-755.83,0.00036712,30]
[401295584,1768115453677,-755.83,0.00036712,30]
[401295585,1768115453687,-755.83,0.00036712,30]
[401295586,1768115453697,-755.83,0.00036712,30]
[401295587,1768115453707,-755.83,0.00036712,30]
[401295588,1768115453718,-755.83,0.00036712,30]
[401295589,1768115453729,-755.83,0.00036712,30]
[401295590,1768115453739,-755.83,0.00036712,30]
[401295591,1768115453749,-755.83,0.00036712,30]
[401295592,1768115453759,-755.83,0.00036712,30]
[401295593,1768115453769,-755.83,0.00036712,30]
[401295594,1768115453779,-755.83,0.00036712,30]
[401295595,1768115453790,-755.94222647,0.00036712,30]
[401295596,1768115453800,-500.0,0.00036712,30]
[401295597,1768115453810,-510.31728869,0.00036712,30]
[401295598,1768115453820,-166.907061,0.00036712,30]
[401295599,1768115453830,-150.97237527,0.00036712,30]
[401295600,1768115453841,-663.704051,0.00036712,30]
[401295601,1768115453850,-511.42,0.00036712,30]
[401295602,1768115453860,-511.42,0.00036712,30]
[401295603,1768115453870,-511.42,0.00036712,30]
[401295604,1768115453878,-511.42,0.00036712,30]
[401295605,1768115453888,-511.42,0.00036712,30]
[401295606,1768115453894,-511.42,0.00036712,30]
[401295607,1768115453902,-511.42,0.00036712,30]
[401295608,1768115453909,-511.42,0.00036712,30]
[401295609,1768115453918,-511.42,0.00036712,30]
[401295610,1768115453927,-511.42,0.00036712,30]
[401295611,1768115453937,-511.42,0.00036712,30]
[401295612,1768115453946,-511.42,0.00036712,30]
[401295613,1768115453955,-511.42,0.00036712,30]
[401295614,1768115453965,-511.42,0.00036712,30]
[401295615,1768115453975,-511.42,0.00036712,30]
[401295616,1768115453984,-511.42,0.00036712,30]
[401295617,1768115453994,-508.47586913,0.00036712,30]
[401295618,1768115454003,-511.42,0.00036712,30]
[401295619,1768115454013,-511.42,0.00036712,30]
[401295620,1768115454023,-511.42,0.00036712,30]
[401295621,1768115454032,-511.42,0.00036712,30]
[401295622,1768115454042,-511.42,0.00036712,30]
[401295623,1768115454051,-511.42,0.00036712,30]
[401295624,1768115454061,-511.42,0.00036712,30]
[401295625,1768115454071,-511.43574401,0.00036712,30]
[401295626,1768115454081,-534.30368528,0.00036712,30]
[401295627,1768115454091,-500.0,0.00036712,2]
[401295628,1768115454101,-500.0,0.00036712,2]
[401295629,1768115454111,-500.0,0.00036712,2]
[401295630,1768115454121,-500.0,0.00036712,2]
[401295631,1768115454132,-500.0,0.00036712,2]
[401295632,1768115454142,-500.0,0.00036712,2]
[401295633,1768115454152,-500.0,0.00036712,2]
[401295634,1768115454163,-500.0,0.00036712,2]
[401295635,1768115454173,-500.0,0.00036712,2]
[401295636,1768115454183,-500.0,0.00036712,2]
[401295637,1768115454192,-500.0,0.00036712,2]
[401295638,1768115454202,-500.0,0.00036712,2]
[401295639,1768115454212,-500.0,0.00036712,2]
[401295640,1768115454222,-500.0,0.00036712,2]
[401295641,1768115454231,-500.0,0.00036712,2]
[401295642,1768115454241,-500.0,0.00036712,2]
[401295643,1768115454251,-500.0,0.00036712,2]
[401295644,1768115454261,-629.01311732,0.00036712,2]
[401295645,1768115454271,-501.7237392,0.00036712,30]
[401295646,1768115454281,-505.71118481,0.00036712,30]
[401295647,1768115454290,-550.91570645,0.00036712,30]
[401295648,1768115454299,-511.2635964,0.00036712,30]
[401295649,1768115454309,-525.47052968,0.00036712,30]
[401295650,1768115454318,-500.0,0.00036712,30]
[401295651,1768115454328,-500.0,0.00036712,30]
[401295652,1768115454338,-500.0,0.00036712,30]
[401295653,1768115454348,-514.0321533,0.00036712,30]
[401295654,1768115454357,-210.64083434,0.00036712,30]
[401295655,1768115454367,-506.27876809,0.00036712,30]
[401295656,1768115454376,-584.92818268,0.00036712,30]
[401295657,1768115454386,-500.0,0.00036712,30]
[401295658,1768115454395,-506.19561668,0.00036712,30]
[401295659,1768115454409,-311.04511253,0.00036712,30]
[401295660,1768115454418,-240.94098718,0.00036712,30]
[401295661,1768115454428,-503.90614226,0.00036712,30]
[401295662,1768115454437,-470.16657396,0.00036712,30]
[401295663,1768115454446,-223.00612782,0.00036712,30]
[401295664,1768115454456,-504.32900075,0.00036712,30]
[401295665,1768115454465,-514.24228966,0.00036712,30]
[401295666,1768115454475,-500.0,0.00036712,30]
[401295667,1768115454484,-168.51621167,0.00036712,30]
[401295668,1768115454495,-500.0,0.00036712,30]
[401295669,1768115454505,-524.57743511,0.00036712,30]
[401295670,1768115454515,-289.81934989,0.00036712,30]
[401295671,1768115454524,-575.38785442,0.00036712,30]
[401295672,1768115454534,-512.75303942,0.00036712,30]
[401295673,1768115454640,-361.66476166,0.00036712,30]
[401295674,1768115454651,-544.06434605,0.00036712,30]
[401295675,1768115454661,-500.0,0.00036712,30]
[401295676,1768115454671,-501.30732126,0.00036712,30]
[401295677,1768115454681,-500.0,0.00036712,30]
[401295678,1768115454690,-505.35430273,0.00036712,30]
[401295679,1768115454700,-500.0,0.00036712,30]
[401295680,1768115454711,-504.06028956,0.00036712,30]
[401295681,1768115454726,-542.76368036,0.00036712,30]
[401295682,1768115454735,-503.45730481,0.00036712,30]
[401295683,1768115454745,-506.70821514,0.00036712,30]
[401295684,1768115454754,-503.81493644,0.00036712,30]
[401295685,1768115454764,-505.38162549,0.00036712,30]
[401295686,1768115454774,-500.0,0.00036712,30]
[401295687,1768115454783,-582.56702915,0.00036712,30]
[401295688,1768115454793,-506.69367317,0.00036712,30]
[401295689,1768115454803,-503.1318343,0.00036712,30]
[401295690,1768115454812,-215.36077663,0.00036712,30]
[401295691,1768115454821,-571.59262155,0.00036712,30]
[401295692,1768115454830,-537.74011614,0.00036712,30]
[401295693,1768115454840,-510.73351172,0.00036712,30]
[401295694,1768115454849,-521.16032339,0.00036712,30]
[401295695,1768115454859,-504.48438496,0.00036712,30]
[401295696,1768115454868,-155.09141946,0.00036712,30]
[401295697,1768115454878,-511.28082542,0.00036712,30]
[401295698,1768115454887,-2561.92,0.00036712,3]
[401295699,1768115454896,-2561.92,0.00036712,3]
[401295700,1768115454907,-2561.92,0.00036712,3]
[401295701,1768115454916,-2561.92,0.00036712,3]
[401295702,1768115454925,-2561.92,0.00036712,3]
[401295703,1768115454935,-2561.92,0.00036712,3]
[401295704,1768115454944,-2561.92,0.00036712,3]
[401295705,1768115454953,-501.48369202,0.00036712,30]
[401295706,1768115454963,-2561.92,0.00036712,3]
[401295707,1768115454972,-2561.92,0.00036712,3]
[401295708,1768115454982,-512.03508644,0.00036712,30]
[401295709,1768115454991,-2561.92,0.00036712,3]
[401295710,1768115455001,-2561.92,0.00036712,3]
[401295711,1768115455010,-2561.92,0.00036712,3]
[401295712,1768115455019,-2561.92,0.00036712,3]
[401295713,1768115455028,-2561.92,0.00036712,3]
[401295714,1768115455037,-2561.92,0.00036712,3]
[401295715,1768115455046,-2561.92,0.00036712,3]
[401295716,1768115455057,-2561.92,0.00036712,3]
[401295717,1768115455067,-2561.92,0.00036712,3]
[401295718,1768115455077,-521.64444701,0.00036712,30]
[401295719,1768115455087,-2561.92,0.00036712,3]
[401295720,1768115455097,-2561.92,0.00036712,3]
[401295721,1768115455107,-2561.92,0.00036712,3]
[401295722,1768115455116,-2561.92,0.00036712,3]
[401295723,1768115455126,-2561.92,0.00036712,3]
[401295724,1768115455136,-2562.08931595,0.00036712,3]
[401295725,1768115455145,-509.09825176,0.00036712,30]
[401295726,1768115455155,-512.51462059,0.00036712,30]
[401295727,1768115455164,-2486.72,0.00036712,30]
[401295728,1768115455174,-2486.72,0.00036712,30]
[401295729,1768115455183,-550.09495858,0.00036712,30]
[401295730,1768115455194,-2486.72,0.00036712,30]
[401295731,1768115455203,-2486.72,0.00036712,30]
[401295732,1768115455215,-2486.72,0.00036712,30]
[401295733,1768115455228,-2486.72,0.00036712,30]
[401295734,1768115455239,-2486.72,0.00036712,30]
[401295735,1768115455248,-2486.72,0.00036712,30]
[401295736,1768115455259,-2486.72,0.00036712,30]
[401295737,1768115455268,-522.33649511,0.00036712,30]
[401295738,1768115455277,-2486.72,0.00036712,30]
[401295739,1768115455287,-2486.72,0.00036712,30]
[401295740,1768115455297,-2486.72,0.00036712,30]
[401295741,1768115455308,-2486.72,0.00036712,30]
[401295742,1768115455319,-2486.72,0.00036712,30]
[401295743,1768115455332,-2486.72,0.00036712,30]
[401295744,1768115455342,-2486.72,0.00036712,30]
[401295745,1768115455355,-2486.72,0.00036712,30]
[401295746,1768115455365,-2486.72,0.00036712,30]
[401295747,1768115455375,-2486.72,0.00036712,30]
[401295748,1768115455385,-2486.72,0.00036712,30]
[401295749,1768115455397,-2486.72,0.00036712,30]
[401295750,1768115455411,-500.0,0.00036712,30]
[401295751,1768115455421,-2486.72,0.00036712,30]
[401295752,1768115455431,-599.63821508,0.00036712,30]
[401295753,1768115455441,-2486.72,0.00036712,30]
[401295754,1768115455451,-2486.94436538,0.00036712,30]
[401295755,1768115455461,-505.45567173,0.00036712,30]
[401295756,1768115455471,-16913.26,0.00036712,30]
[401295757,1768115455483,-16913.26,0.00036712,30]
[401295758,1768115455492,-16913.26,0.00036712,30]
[401295759,1768115455502,-16913.26,0.00036712,30]
[401295760,1768115455511,-16913.26,0.00036712,30]
[401295761,1768115455521,-16913.26,0.00036712,30]
[401295762,1768115455532,-16913.26,0.00036712,30]
[401295763,1768115455542,-16913.26,0.00036712,30]
[401295764,1768115455553,-16913.26,0.00036712,30]
[401295765,1768115455566,-16913.26,0.00036712,30]
[401295766,1768115455577,-16913.26,0.00036712,30]
[401295767,1768115455588,-16913.26,0.00036712,30]
[401295768,1768115455599,-16913.26,0.00036712,30]
[401295769,1768115455608,-16913.26,0.00036712,30]
[401295770,1768115455618,-16913.26,0.00036712,30]
[401295771,1768115455627,-16913.26,0.00036712,30]
[401295772,1768115455637,-16913.26,0.00036712,30]
[401295773,1768115455647,-16913.26,0.00036712,30]
[401295774,1768115455657,-16913.26,0.00036712,30]
[401295775,1768115455668,-16913.26,0.00036712,30]
[401295776,1768115455677,-16913.26,0.00036712,30]
[401295777,1768115455687,-16913.26,0.00036712,30]
[401295778,1768115455697,-16913.26,0.00036712,30]
[401295779,1768115455706,-16913.36033999,0.00036712,30]
[401295780,1768115455716,-425.00994657,0.00036712,30]
[401295781,1768115455726,-500.0,0.00036712,30]
[401295782,1768115455734,-222.92460277,0.00036712,30]
[401295783,1768115455744,-4899.58,0.00036712,30]
[401295784,1768115455754,-4899.58,0.00036712,30]
[401295785,1768115455764,-4899.58,0.00036712,30]
[401295786,1768115455773,-4899.58,0.00036712,30]
[401295787,1768115455783,-4899.58,0.00036712,30]
[401295788,1768115455792,-4899.58,0.00036712,30]
[401295789,1768115455801,-4899.58,0.00036712,30]
[401295790,1768115455811,-4899.58,0.00036712,30]
[401295791,1768115455820,-4899.58,0.00036712,30]
[401295792,1768115455829,-4899.58,0.00036712,30]
[401295793,1768115455839,-4899.58,0.00036712,30]
[401295794,1768115455848,-500.0,0.00036712,30]
[401295795,1768115455857,-354.9109568,0.00036712,30]
[401295796,1768115455867,-4899.58,0.00036712,30]
[401295797,1768115455876,-4899.58,0.00036712,30]
[401295798,1768115455885,-4899.58,0.00036712,30]
[401295799,1768115455894,-4899.58,0.00036712,30]
[401295800,1768115455903,-4899.58,0.00036712,30]
[401295801,1768115455913,-4899.58,0.00036712,30]
[401295802,1768115455922,-4899.58,0.00036712,30]
[401295803,1768115455932,-4899.58,0.00036712,30]
[401295804,1768115455942,-4899.58,0.00036712,30]
[401295805,1768115455954,-4899.58,0.00036712,30]
[401295806,1768115455964,-4899.58,0.00036712,30]
[401295807,1768115455973,-4899.58,0.00036712,30]
[401295808,1768115455983,-4899.65119912,0.00036712,30]
[401295809,1768115455992,-561.05106257,0.00036712,30]
[401295810,1768115456002,-511.731764,0.00036712,30]
[401295811,1768115456011,-503.31167463,0.00036712,30]
[401295812,1768115456022,-2226.28,0.00036712,30]
[401295813,1768115456032,-2226.28,0.00036712,30]
[401295814,1768115456043,-2226.28,0.00036712,30]
[401295815,1768115456053,-169.16597099,0.00036712,30]
[401295816,1768115456064,-2226.28,0.00036712,30]
[401295817,1768115456073,-2226.28,0.00036712,30]
[401295818,1768115456083,-2226.28,0.00036712,30]
[401295819,1768115456093,-2226.28,0.00036712,30]
[401295820,1768115456102,-2226.28,0.00036712,30]
[401295821,1768115456112,-2226.28,0.00036712,30]
[401295822,1768115456121,-2226.28,0.00036712,30]
[401295823,1768115456131,-2226.28,0.00036712,30]
[401295824,1768115456140,-2226.28,0.00036712,30]
[401295825,1768115456150,-2226.28,0.00036712,30]
[401295826,1768115456160,-525.83016395,0.00036712,30]
[401295827,1768115456170,-2226.28,0.00036712,30]
[401295828,1768115456180,-2226.28,0.00036712,30]
[401295829,1768115456191,-2226.28,0.00036712,30]
[401295830,1768115456201,-2226.28,0.00036712,30]
[401295831,1768115456211,-2226.28,0.00036712,30]
[401295832,1768115456221,-2226.28,0.00036712,30]
[401295833,1768115456231,-2226.28,0.00036712,30]
[401295834,1768115456240,-527.49642559,0.00036712,30]
[401295835,1768115456250,-2226.28,0.00036712,30]
[401295836,1768115456260,-2226.28,0.00036712,30]
[401295837,1768115456269,-2226.28,0.00036712,30]
[401295838,1768115456279,-2226.30138501,0.00036712,30]
[401295839,1768115456289,-593.48375245,0.00036712,30]
[401295840,1768115456299,-504.12370539,0.00036712,30]
[401295841,1768115456308,-514.60578154,0.00036712,30]
[401295842,1768115456318,-6797.13,0.00036712,30]
[401295843,1768115456406,-6797.13,0.00036712,30]
[401295844,1768115456417,-6797.13,0.00036712,30]
[401295845,1768115456428,-6797.13,0.00036712,30]
[401295846,1768115456443,-6797.13,0.00036712,30]
[401295847,1768115456453,-6797.13,0.00036712,30]
[401295848,1768115456463,-6797.13,0.00036712,30]
[401295849,1768115456473,-261.29087669,0.00036712,30]
[401295850,1768115456483,-6797.13,0.00036712,30]
[401295851,1768115456494,-6797.13,0.00036712,30]
[401295852,1768115456505,-6797.13,0.00036712,30]
[401295853,1768115456514,-6797.13,0.00036712,30]
[401295854,1768115456524,-6797.13,0.00036712,30]
[401295855,1768115456534,-6797.13,0.00036712,30]
[401295856,1768115456544,-6797.13,0.00036712,30]
[401295857,1768115456554,-6797.13,0.00036712,30]
[401295858,1768115456563,-6797.13,0.00036712,30]
[401295859,1768115456573,-6797.13,0.00036712,30]
[401295860,1768115456584,-6797.13,0.00036712,30]
[401295861,1768115456594,-6797.13,0.00036712,30]
[401295862,1768115456603,-6797.13,0.00036712,30]
[401295863,1768115456613,-357.84852667,0.00036712,30]
[401295864,1768115456622,-6797.13,0.00036712,30]
[401295865,1768115456631,-6797.13,0.00036712,30]
[401295866,1768115456641,-6797.13,0.00036712,30]
[401295867,1768115456650,-6797.21544929,0.00036712,30]
[401295868,1768115456660,-540.24322158,0.00036712,30]
[401295869,1768115456669,-363.63908196,0.00036712,120]
[401295870,1768115456679,-239.81900026,0.00036712,30]
[401295871,1768115456688,-500.0,0.00036712,30]
[401295872,1768115456698,-500.0,0.00036712,30]
[401295873,1768115456707,-505.50165535,0.00036712,30]
[401295874,1768115456717,-500.0,0.00036712,30]
[401295875,1768115456727,-500.0,0.00036712,30]
[401295876,1768115456736,-500.0,0.00036712,30]
[401295877,1768115456746,-500.0,0.00036712,30]
[401295878,1768115456755,-500.0,0.00036712,30]
[401295879,1768115456764,-500.0,0.00036712,30]
[401295880,1768115456774,-500.0,0.00036712,30]
[401295881,1768115456784,-313.65745506,0.00036712,30]
[401295882,1768115456794,-165.09995213,0.00036712,30]
[401295883,1768115456804,-517.20995713,0.00036712,30]
[401295884,1768115456814,-277.08944591,0.00036712,30]
[401295885,1768115456824,-407.60874848,0.00036712,30]
[401295886,1768115456833,-2536.91,0.00036712,30]
[401295887,1768115456842,-2536.91,0.00036712,30]
[401295888,1768115456853,-2536.91,0.00036712,30]
[401295889,1768115456863,-2536.91,0.00036712,30]
[401295890,1768115456872,-2536.91,0.00036712,30]
[401295891,1768115456881,-2536.91,0.00036712,30]
[401295892,1768115456891,-2536.91,0.00036712,30]
[401295893,1768115456901,-2536.91,0.00036712,30]
[401295894,1768115456912,-2536.91,0.00036712,30]
[401295895,1768115456922,-2536.91,0.00036712,30]
[401295896,1768115456932,-2536.91,0.00036712,30]
[401295897,1768115456941,-2536.91,0.00036712,30]
[401295898,1768115456951,-2536.91,0.00036712,30]
[401295899,1768115456960,-2536.91,0.00036712,30]
[401295900,1768115456970,-2536.91,0.00036712,30]
[401295901,1768115456979,-2536.91,0.00036712,30]
[401295902,1768115456989,-2536.91,0.00036712,30]
[401295903,1768115456998,-2536.91,0.00036712,30]
[401295904,1768115457008,-2536.91,0.00036712,30]
[401295905,1768115457017,-2536.91,0.00036712,30]
[401295906,1768115457026,-2536.91,0.00036712,30]
[401295907,1768115457035,-2536.91,0.00036712,30]
[401295908,1768115457045,-2536.91,0.00036712,30]
[401295909,1768115457054,-2537.12156586,0.00036712,30]
[401295910,1768115457064,-500.0,0.00036712,30]
[401295911,1768115457073,-500.0,0.00036712,30]
[401295912,1768115457082,-500.0,0.00036712,30]
[401295913,1768115457091,-500.0,0.00036712,30]
[401295914,1768115457101,-500.0,0.00036712,30]
[401295915,1768115457110,-500.0,0.00036712,30]
[401295916,1768115457120,-500.0,0.00036712,30]
[401295917,1768115457132,-500.0,0.00036712,30]
[401295918,1768115457144,-500.0,0.00036712,30]
[401295919,1768115457155,-500.0,0.00036712,30]
[401295920,1768115457164,-500.0,0.00036712,30]
[401295921,1768115457173,-500.0,0.00036712,30]
[401295922,1768115457183,-4204.37,0.00036712,30]
[401295923,1768115457192,-521.89810151,0.00036712,30]
[401295924,1768115457202,-4204.37,0.00036712,30]
[401295925,1768115457212,-4204.37,0.00036712,30]
[401295926,1768115457221,-4204.37,0.00036712,30]
[401295927,1768115457231,-4204.37,0.00036712,30]
[401295928,1768115457241,-280.94769815,0.00036712,30]
[401295929,1768115457251,-4204.37,0.00036712,30]
[401295930,1768115457261,-4204.37,0.00036712,30]
[401295931,1768115457270,-4204.37,0.00036712,30]
[401295932,1768115457280,-4204.37,0.00036712,30]
[401295933,1768115457289,-4204.37,0.00036712,30]
[401295934,1768115457299,-4204.37,0.00036712,30]
[401295935,1768115457308,-4204.37,0.00036712,30]
[401295936,1768115457318,-4204.37,0.00036712,30]
[401295937,1768115457327,-4204.37,0.00036712,30]
[401295938,1768115457337,-4204.37,0.00036712,30]
[401295939,1768115457347,-4204.37,0.00036712,30]
[401295940,1768115457359,-4204.37,0.00036712,30]
[401295941,1768115457368,-4204.37,0.00036712,30]
[401295942,1768115457379,-4204.37,0.00036712,30]
[401295943,1768115457390,-4204.37,0.00036712,30]
[401295944,1768115457400,-4204.37,0.00036712,30]
[401295945,1768115457415,-4204.37,0.00036712,30]
[401295946,1768115457424,-4204.37,0.00036712,30]
[401295947,1768115457434,-4204.50120336,0.00036712,30]
[401295948,1768115457444,-272.93074829,0.00036712,30]
[401295949,1768115457454,-500.0,0.00036712,30]
[401295950,1768115457464,-195.29011335,0.00036712,30]
[401295951,1768115457474,-503.55890318,0.00036712,30]
[401295952,1768115457485,-271.93960017,0.00036712,30]
[401295953,1768115457496,-150.87150933,0.00036712,30]
[401295954,1768115457508,-153.43170984,0.00036712,30]
[401295955,1768115457518,-168.3895598,0.00036712,30]
[401295956,1768115457528,-500.0,0.00036712,10]
[401295957,1768115457537,-500.0,0.00036712,10]
[401295958,1768115457547,-500.0,0.00036712,10]
[401295959,1768115457556,-500.0,0.00036712,10]